[Event "*** Titled Tuesday Blitz"]
[Site "Chess.com"]
[Date "2018.10.02"]
[Round "6"]
[White "evgenysharapov"]
[Black "ruvat"]
[Result "1/2-1/2"]
[WhiteElo "2450"]
[BlackElo "2303"]
[TimeControl "180+2"]
[EndTime "14:23:04 PDT"]
[Termination "Game drawn - insufficient material"]

1. c4 {[%clk 0:03:01.9]} 1... d6 {[%clk 0:02:59.3]} 2. Nc3 {[%clk 0:03:02.3]}
2... e5 {[%clk 0:02:59.9]} 3. g3 {[%clk 0:03:02.9]} 3... f5 {[%clk 0:02:59.6]}
4. Bg2 {[%clk 0:03:03.5]} 4... Nf6 {[%clk 0:02:59.6]} 5. d3 {[%clk 0:03:04.1]}
5... Be7 {[%clk 0:02:59.3]} 6. e3 {[%clk 0:03:04.3]} 6... O-O {[%clk 0:02:59.9]}
7. Nge2 {[%clk 0:03:04.9]} 7... c6 {[%clk 0:03:00.8]} 8. O-O {[%clk 0:03:05.4]}
8... Be6 {[%clk 0:02:57]} 9. b4 {[%clk 0:03:02.3]} 9... d5 {[%clk 0:02:56.3]}
10. cxd5 {[%clk 0:03:02.8]} 10... cxd5 {[%clk 0:02:56.4]} 11. d4 {[%clk
0:03:01.3]} 11... e4 {[%clk 0:02:56.6]} 12. Qb3 {[%clk 0:03:00]} 12... Bf7
{[%clk 0:02:48.6]} 13. Bd2 {[%clk 0:02:57.5]} 13... Nbd7 {[%clk 0:02:43.8]} 14.
Na4 {[%clk 0:02:49]} 14... Nb6 {[%clk 0:02:34.1]} 15. Nxb6 {[%clk 0:02:49.2]}
15... axb6 {[%clk 0:02:34.6]} 16. Rfc1 {[%clk 0:02:46.4]} 16... Qd7 {[%clk
0:02:29.4]} 17. a4 {[%clk 0:02:40.8]} 17... g5 {[%clk 0:02:18.3]} 18. b5 {[%clk
0:02:41]} 18... Qd6 {[%clk 0:01:50]} 19. Rc2 {[%clk 0:02:13.3]} 19... Rfc8
{[%clk 0:01:33.7]} 20. Rac1 {[%clk 0:02:08.5]} 20... Rxc2 {[%clk 0:01:33.1]} 21.
Rxc2 {[%clk 0:02:09.1]} 21... Qa3 {[%clk 0:01:30.2]} 22. Qxa3 {[%clk 0:01:58.7]}
22... Bxa3 {[%clk 0:01:32.1]} 23. Ra2 {[%clk 0:01:42.5]} 23... Bd6 {[%clk
0:01:29.5]} 24. h3 {[%clk 0:01:33.1]} 24... Be8 {[%clk 0:01:25.1]} 25. Nc3
{[%clk 0:01:32.6]} 25... Kg7 {[%clk 0:01:05.2]} 26. Kf1 {[%clk 0:01:24.9]} 26...
Bb4 {[%clk 0:00:52]} 27. Nxe4 {[%clk 0:01:09.3]} 27... fxe4 {[%clk 0:00:30.1]}
28. Bxb4 {[%clk 0:01:08.2]} 28... Rxa4 {[%clk 0:00:29.3]} 29. Rxa4 {[%clk
0:01:07.2]} 29... Bxb5+ {[%clk 0:00:30.1]} 30. Ke1 {[%clk 0:01:07]} 30... Bxa4
{[%clk 0:00:31.2]} 31. Kd2 {[%clk 0:01:06.2]} 31... Bb5 {[%clk 0:00:28.6]} 32.
Bd6 {[%clk 0:01:04.6]} 32... Bc4 {[%clk 0:00:24.8]} 33. Kc3 {[%clk 0:01:01]}
33... Kf7 {[%clk 0:00:24.1]} 34. Kb4 {[%clk 0:01:00.8]} 34... Ke6 {[%clk
0:00:22.8]} 35. Bc7 {[%clk 0:01:01.2]} 35... b5 {[%clk 0:00:20.7]} 36. Bd8
{[%clk 0:00:55.5]} 36... h5 {[%clk 0:00:20.5]} 37. f3 {[%clk 0:00:50.1]} 37...
exf3 {[%clk 0:00:15.7]} 38. Bxf3 {[%clk 0:00:50.8]} 38... g4 {[%clk 0:00:15]}
39. hxg4 {[%clk 0:00:51.4]} 39... Nxg4 {[%clk 0:00:14.6]} 40. Bg5 {[%clk
0:00:40]} 40... Kf5 {[%clk 0:00:15.4]} 41. Bf4 {[%clk 0:00:39.3]} 41... Nf6
{[%clk 0:00:11.6]} 42. Be5 {[%clk 0:00:36.9]} 42... Ng4 {[%clk 0:00:12.2]} 43.
Bf4 {[%clk 0:00:32.6]} 43... Nf6 {[%clk 0:00:12.1]} 44. Ka5 {[%clk 0:00:32.2]}
44... Ng4 {[%clk 0:00:12.1]} 45. Bd1 {[%clk 0:00:28.5]} 45... Nf6 {[%clk
0:00:11.5]} 46. Kb4 {[%clk 0:00:22.4]} 46... Ng4 {[%clk 0:00:10.3]} 47. Bc2+
{[%clk 0:00:19]} 47... Ke6 {[%clk 0:00:10.9]} 48. e4 {[%clk 0:00:19.8]} 48...
dxe4 {[%clk 0:00:11]} 49. Bxe4 {[%clk 0:00:20.4]} 49... b6 {[%clk 0:00:10.4]}
50. Bc6 {[%clk 0:00:17.8]} 50... Nf6 {[%clk 0:00:09.5]} 51. Be5 {[%clk
0:00:17.5]} 51... Nd5+ {[%clk 0:00:09]} 52. Ka3 {[%clk 0:00:18.3]} 52... b4+
{[%clk 0:00:09]} 53. Kb2 {[%clk 0:00:18.9]} 53... b3 {[%clk 0:00:09.3]} 54. Be8
{[%clk 0:00:18.6]} 54... Nf6 {[%clk 0:00:08.1]} 55. Bxf6 {[%clk 0:00:18.8]}
55... Kxf6 {[%clk 0:00:08.9]} 56. Bxh5 {[%clk 0:00:19.7]} 56... Bd5 {[%clk
0:00:08.9]} 57. Bd1 {[%clk 0:00:19.9]} 57... Kg5 {[%clk 0:00:05.2]} 58. Bxb3
{[%clk 0:00:20.4]} 58... Bc6 {[%clk 0:00:05.2]} 59. d5 {[%clk 0:00:19.3]} 59...
Bxd5 {[%clk 0:00:04.6]} 60. Bxd5 {[%clk 0:00:19.8]} 60... Kg4 {[%clk 0:00:05.7]}
61. Kb3 {[%clk 0:00:20.6]} 61... Kxg3 {[%clk 0:00:06.7]} 62. Kb4 {[%clk
0:00:21.7]} 62... Kf4 {[%clk 0:00:07.8]} 63. Kb5 {[%clk 0:00:22.9]} 63... Ke5
{[%clk 0:00:08.9]} 64. Kxb6 {[%clk 0:00:24]} 1/2-1/2

[Event "*** Titled Tuesday Blitz"]
[Site "Chess.com"]
[Date "2018.10.02"]
[Round "6"]
[White "sergoy"]
[Black "Shant_Sargsyan"]
[Result "1/2-1/2"]
[WhiteElo "2800"]
[BlackElo "2903"]
[TimeControl "180+2"]
[EndTime "14:23:39 PDT"]
[Termination "Game drawn by agreement"]

1. Nf3 {[%clk 0:02:54.3]} 1... d5 {[%clk 0:03:00]} 2. d4 {[%clk 0:02:55.5]} 2...
Nf6 {[%clk 0:03:01]} 3. c4 {[%clk 0:02:56.9]} 3... e6 {[%clk 0:03:02.2]} 4. Nc3
{[%clk 0:02:57.5]} 4... Bb4 {[%clk 0:03:03.6]} 5. Bg5 {[%clk 0:02:57.8]} 5...
dxc4 {[%clk 0:03:03.4]} 6. e3 {[%clk 0:02:57.4]} 6... b5 {[%clk 0:03:03.4]} 7.
Be2 {[%clk 0:02:53.3]} 7... c6 {[%clk 0:02:56.1]} 8. O-O {[%clk 0:02:53.7]} 8...
a6 {[%clk 0:02:55.3]} 9. a4 {[%clk 0:02:43.3]} 9... Bb7 {[%clk 0:02:55.7]} 10.
Ne5 {[%clk 0:02:37.7]} 10... Nbd7 {[%clk 0:02:56.4]} 11. Qc2 {[%clk 0:02:28.5]}
11... Be7 {[%clk 0:02:56.9]} 12. Rad1 {[%clk 0:02:21.2]} 12... O-O {[%clk
0:02:55.6]} 13. Bf3 {[%clk 0:02:20.8]} 13... Nd5 {[%clk 0:02:45.4]} 14. Bxe7
{[%clk 0:02:19.5]} 14... Qxe7 {[%clk 0:02:47.3]} 15. Nxd7 {[%clk 0:02:21.1]}
15... Qxd7 {[%clk 0:02:48.1]} 16. Ne4 {[%clk 0:02:22.7]} 16... Qe7 {[%clk
0:02:46.3]} 17. Nc5 {[%clk 0:02:22.3]} 17... Rfd8 {[%clk 0:02:45.6]} 18. e4
{[%clk 0:02:18.5]} 18... Nf6 {[%clk 0:02:45.7]} 19. e5 {[%clk 0:02:18.7]} 19...
Nd5 {[%clk 0:02:46.4]} 20. Be4 {[%clk 0:02:20.1]} 20... g6 {[%clk 0:02:39.2]}
21. g3 {[%clk 0:02:20.9]} 21... a5 {[%clk 0:02:39.6]} 22. h4 {[%clk 0:02:16.1]}
22... Ba6 {[%clk 0:02:40.1]} 23. Kg2 {[%clk 0:02:11.4]} 23... bxa4 {[%clk
0:02:40.8]} 24. Rh1 {[%clk 0:02:07.6]} 24... Nb4 {[%clk 0:02:33.8]} 25. Qxa4
{[%clk 0:01:49.6]} 25... Bb5 {[%clk 0:02:33]} 26. Qa3 {[%clk 0:01:50.3]} 26...
Nd3 {[%clk 0:02:21.9]} 27. Bxd3 {[%clk 0:01:23.1]} 27... cxd3 {[%clk 0:02:21.9]}
28. Qc3 {[%clk 0:01:24.5]} 28... h5 {[%clk 0:02:14.5]} 29. Nxd3 {[%clk
0:01:21.4]} 29... Qd7 {[%clk 0:02:13.3]} 30. Nc5 {[%clk 0:01:16.4]} 30... Qd5+
{[%clk 0:02:13.9]} 31. f3 {[%clk 0:01:17.9]} 31... Rab8 {[%clk 0:02:08.1]} 32.
Rd2 {[%clk 0:01:13]} 32... Kg7 {[%clk 0:02:05.5]} 33. Qe3 {[%clk 0:01:11.7]}
33... a4 {[%clk 0:01:53.7]} 34. Rc1 {[%clk 0:01:07]} 34... Bc4 {[%clk
0:01:27.5]} 35. Qf4 {[%clk 0:01:05.2]} 35... Bb3 {[%clk 0:01:17.9]} 36. Ne4
{[%clk 0:01:04.7]} 36... Qd7 {[%clk 0:01:05.3]} 37. Nf6 {[%clk 0:01:01.9]} 37...
Qe7 {[%clk 0:00:59.8]} 38. Qg5 {[%clk 0:01:02.2]} 38... Rh8 {[%clk 0:00:58.9]}
39. Nxh5+ {[%clk 0:00:58.2]} 39... Kf8 {[%clk 0:00:59.6]} 40. Nf6 {[%clk
0:00:59.7]} 40... Bd5 {[%clk 0:00:59.8]} 41. Rc3 {[%clk 0:00:53.7]} 41... Kg7
{[%clk 0:00:45.7]} 42. h5 {[%clk 0:00:46]} 42... Rh6 {[%clk 0:00:40.5]} 43. hxg6
{[%clk 0:00:38.8]} 43... Rxg6 {[%clk 0:00:42]} 44. Nh5+ {[%clk 0:00:33]} 44...
Kf8 {[%clk 0:00:43]} 45. Qxe7+ {[%clk 0:00:29.8]} 45... Kxe7 {[%clk 0:00:44.9]}
46. Nf4 {[%clk 0:00:31.5]} 46... Rh6 {[%clk 0:00:45.8]} 47. Nxd5+ {[%clk
0:00:32]} 47... cxd5 {[%clk 0:00:47.7]} 48. Rc7+ {[%clk 0:00:32.5]} 48... Kf8
{[%clk 0:00:48.7]} 49. Ra7 {[%clk 0:00:33.4]} 49... Rb4 {[%clk 0:00:48]} 50. g4
{[%clk 0:00:33.8]} 50... Kg7 {[%clk 0:00:48.1]} 51. Rc2 {[%clk 0:00:30.6]} 51...
Rh8 {[%clk 0:00:44.3]} 52. Rd2 {[%clk 0:00:24.9]} 52... Rhb8 {[%clk 0:00:45]}
53. Kg3 {[%clk 0:00:24.2]} 53... Rc4 {[%clk 0:00:43.5]} 54. f4 {[%clk
0:00:18.7]} 54... Kg6 {[%clk 0:00:27.3]} 55. f5+ {[%clk 0:00:19.7]} 55... exf5
{[%clk 0:00:23.4]} 56. gxf5+ {[%clk 0:00:21.6]} 56... Kxf5 {[%clk 0:00:25.3]}
57. Rxf7+ {[%clk 0:00:22.8]} 57... Ke4 {[%clk 0:00:20.9]} 58. Rf3 {[%clk
0:00:23.6]} 58... Rb3 {[%clk 0:00:13.5]} 59. Re2+ {[%clk 0:00:22.7]} 59... Kxd4
{[%clk 0:00:13.8]} 60. e6 {[%clk 0:00:22.4]} 60... Rb8 {[%clk 0:00:13.9]} 61. e7
{[%clk 0:00:22.9]} 61... Re8 {[%clk 0:00:15.3]} 62. Rf8 {[%clk 0:00:24]} 62...
Rcc8 {[%clk 0:00:16.3]} 63. Rxe8 {[%clk 0:00:24.2]} 63... Rxe8 {[%clk
0:00:18.2]} 64. Kf4 {[%clk 0:00:25.9]} 64... Kd3 {[%clk 0:00:17]} 65. Re6 {[%clk
0:00:27.1]} 65... Kc2 {[%clk 0:00:18]} 66. Ke5 {[%clk 0:00:27]} 66... Kxb2
{[%clk 0:00:19]} 67. Kxd5 {[%clk 0:00:28.4]} 67... a3 {[%clk 0:00:20.3]} 68.
Rb6+ {[%clk 0:00:29.4]} 68... Kc2 {[%clk 0:00:20.9]} 69. Rc6+ {[%clk 0:00:30.1]}
69... Kb2 {[%clk 0:00:22.2]} 70. Rb6+ {[%clk 0:00:31.3]} 70... Kc2 {[%clk
0:00:23.7]} 71. Ra6 {[%clk 0:00:31.5]} 71... Kb2 {[%clk 0:00:22.8]} 1/2-1/2

[Event "*** Titled Tuesday Blitz"]
[Site "Chess.com"]
[Date "2018.10.02"]
[Round "6"]
[White "plouarzel"]
[Black "nearestway"]
[Result "1/2-1/2"]
[WhiteElo "2597"]
[BlackElo "2536"]
[TimeControl "180+2"]
[EndTime "14:24:14 PDT"]
[Termination "Game drawn by repetition"]

1. e4 {[%clk 0:03:01.9]} 1... c5 {[%clk 0:03:00.8]} 2. Nf3 {[%clk 0:03:02.6]}
2... d6 {[%clk 0:03:02.2]} 3. Bb5+ {[%clk 0:03:04]} 3... Bd7 {[%clk 0:03:03]} 4.
Bxd7+ {[%clk 0:03:05.3]} 4... Qxd7 {[%clk 0:03:04.9]} 5. c4 {[%clk 0:03:06.5]}
5... Nf6 {[%clk 0:03:06.2]} 6. Nc3 {[%clk 0:03:07.8]} 6... g6 {[%clk 0:03:07.8]}
7. d4 {[%clk 0:03:08.9]} 7... cxd4 {[%clk 0:03:09.7]} 8. Nxd4 {[%clk 0:03:10.7]}
8... Bg7 {[%clk 0:03:11.2]} 9. b3 {[%clk 0:03:12.3]} 9... O-O {[%clk 0:03:11.4]}
10. Bb2 {[%clk 0:03:13.6]} 10... Nc6 {[%clk 0:03:13]} 11. O-O {[%clk 0:03:15.1]}
11... e6 {[%clk 0:03:13.7]} 12. Nxc6 {[%clk 0:03:14.1]} 12... Qxc6 {[%clk
0:03:14.9]} 13. f3 {[%clk 0:02:41]} 13... Rfd8 {[%clk 0:03:14.2]} 14. Qe2 {[%clk
0:02:41]} 14... a6 {[%clk 0:03:07.2]} 15. Rad1 {[%clk 0:02:38.4]} 15... b5
{[%clk 0:02:48.1]} 16. cxb5 {[%clk 0:02:31.3]} 16... axb5 {[%clk 0:02:48.9]} 17.
Qxb5 {[%clk 0:02:32.9]} 17... Qxb5 {[%clk 0:02:47.6]} 18. Nxb5 {[%clk
0:02:34.8]} 18... Rxa2 {[%clk 0:02:48.7]} 19. Bxf6 {[%clk 0:02:36.3]} 19... Bxf6
{[%clk 0:02:49.7]} 20. Nxd6 {[%clk 0:02:28.6]} 20... Rb2 {[%clk 0:02:36.1]} 21.
e5 {[%clk 0:02:00.4]} 21... Be7 {[%clk 0:02:08]} 22. Rd3 {[%clk 0:02:00.3]}
22... f6 {[%clk 0:01:46.9]} 23. Rfd1 {[%clk 0:01:53.4]} 23... fxe5 {[%clk
0:01:41.7]} 24. Ne4 {[%clk 0:01:50.7]} 24... Rxd3 {[%clk 0:01:27.6]} 25. Rxd3
{[%clk 0:01:52.6]} 25... Kf7 {[%clk 0:01:27.2]} 26. g3 {[%clk 0:01:28.2]} 26...
h5 {[%clk 0:01:24.4]} 27. h4 {[%clk 0:01:28.2]} 27... Ke8 {[%clk 0:01:13.1]} 28.
Kf1 {[%clk 0:01:29.1]} 28... Bb4 {[%clk 0:01:07.8]} 29. Re3 {[%clk 0:01:13.3]}
29... Ke7 {[%clk 0:01:08]} 30. Rd3 {[%clk 0:01:09.6]} 30... Rb1+ {[%clk
0:00:52.4]} 31. Ke2 {[%clk 0:01:05.8]} 31... Re1+ {[%clk 0:00:53.4]} 32. Kf2
{[%clk 0:01:06.5]} 32... Rb1 {[%clk 0:00:55.3]} 33. Kg2 {[%clk 0:00:55.8]} 33...
Rb2+ {[%clk 0:00:52.2]} 34. Kh3 {[%clk 0:00:55]} 34... Rb1 {[%clk 0:00:49.1]}
35. g4 {[%clk 0:00:53.5]} 35... Rh1+ {[%clk 0:00:49.3]} 36. Kg2 {[%clk
0:00:50.3]} 36... Rxh4 {[%clk 0:00:41.9]} 37. g5 {[%clk 0:00:46.4]} 37... Rf4
{[%clk 0:00:40]} 38. Rd1 {[%clk 0:00:44.5]} 38... Rf8 {[%clk 0:00:36.3]} 39. Ra1
{[%clk 0:00:42.4]} 39... Rd8 {[%clk 0:00:33.2]} 40. Ra7+ {[%clk 0:00:42.5]}
40... Rd7 {[%clk 0:00:33.9]} 41. Ra8 {[%clk 0:00:43.8]} 41... Rd8 {[%clk
0:00:34.6]} 42. Ra4 {[%clk 0:00:42.8]} 42... Bd6 {[%clk 0:00:24.6]} 43. Ra6
{[%clk 0:00:39.3]} 43... Rd7 {[%clk 0:00:22.4]} 44. Rb6 {[%clk 0:00:36.8]} 44...
Bc7 {[%clk 0:00:22.6]} 45. Rb7 {[%clk 0:00:36.4]} 45... Bd6 {[%clk 0:00:23.4]}
46. Rb6 {[%clk 0:00:32]} 46... Bc7 {[%clk 0:00:24.6]} 47. Ra6 {[%clk 0:00:33.5]}
47... Rd3 {[%clk 0:00:22.6]} 48. Ra7 {[%clk 0:00:21.8]} 48... Rd7 {[%clk
0:00:20.2]} 49. Nc5 {[%clk 0:00:21.2]} 49... Rd2+ {[%clk 0:00:21]} 50. Kh3
{[%clk 0:00:21.9]} 50... Rc2 {[%clk 0:00:08.2]} 51. b4 {[%clk 0:00:21.1]} 51...
Kd6 {[%clk 0:00:06.5]} 52. Ra6+ {[%clk 0:00:22.3]} 52... Kd5 {[%clk 0:00:07.4]}
53. Nxe6 {[%clk 0:00:19.2]} 53... Bd6 {[%clk 0:00:08.1]} 54. Nc5 {[%clk
0:00:07.6]} 54... Bxc5 {[%clk 0:00:06.6]} 55. bxc5 {[%clk 0:00:08.3]} 55... Rxc5
{[%clk 0:00:07.8]} 56. Rxg6 {[%clk 0:00:09.8]} 56... Rc3 {[%clk 0:00:08.6]} 57.
Kg2 {[%clk 0:00:10]} 57... e4 {[%clk 0:00:08.1]} 58. fxe4+ {[%clk 0:00:08.2]}
58... Kxe4 {[%clk 0:00:09.2]} 59. Rf6 {[%clk 0:00:08.5]} 59... Rc5 {[%clk
0:00:08.8]} 60. g6 {[%clk 0:00:09.1]} 60... Rg5+ {[%clk 0:00:10]} 61. Kh3 {[%clk
0:00:10.5]} 61... Ke5 {[%clk 0:00:11.5]} 62. Ra6 {[%clk 0:00:11.3]} 62... Kf5
{[%clk 0:00:12.8]} 63. Kh4 {[%clk 0:00:12.1]} 63... Rxg6 {[%clk 0:00:12.2]} 64.
Rxg6 {[%clk 0:00:07.9]} 64... Kxg6 {[%clk 0:00:13.3]} 65. Kh3 {[%clk 0:00:09.3]}
65... Kg5 {[%clk 0:00:15.2]} 66. Kg3 {[%clk 0:00:10.2]} 66... h4+ {[%clk
0:00:15.4]} 67. Kh3 {[%clk 0:00:11]} 67... Kh5 {[%clk 0:00:17.3]} 68. Kh2 {[%clk
0:00:12.3]} 68... Kg4 {[%clk 0:00:18.8]} 69. Kg2 {[%clk 0:00:14.2]} 69... Kf4
{[%clk 0:00:20.4]} 70. Kh3 {[%clk 0:00:14.8]} 70... Kg5 {[%clk 0:00:22.3]} 71.
Kg2 {[%clk 0:00:15.9]} 71... Kf5 {[%clk 0:00:23.8]} 72. Kh3 {[%clk 0:00:10.9]}
72... Kg5 {[%clk 0:00:25.7]} 73. Kh2 {[%clk 0:00:05.3]} 73... Kg4 {[%clk
0:00:27.6]} 74. Kg2 {[%clk 0:00:04.3]} 74... Kf4 {[%clk 0:00:29.5]} 75. Kh3
{[%clk 0:00:05.2]} 75... Kg5 {[%clk 0:00:31.4]} 76. Kh2 {[%clk 0:00:05.9]} 76...
Kg4 {[%clk 0:00:33.3]} 77. Kh1 {[%clk 0:00:06.9]} 77... Kg3 {[%clk 0:00:34.2]}
78. Kg1 {[%clk 0:00:07.6]} 78... Kh3 {[%clk 0:00:36.1]} 79. Kh1 {[%clk 0:00:09]}
79... Kg3 {[%clk 0:00:38]} 80. Kg1 {[%clk 0:00:03.3]} 80... Kf3 {[%clk
0:00:39.9]} 81. Kh2 {[%clk 0:00:04.4]} 81... Kg4 {[%clk 0:00:41.8]} 82. Kg2
{[%clk 0:00:05.6]} 82... Kf4 {[%clk 0:00:43.4]} 83. Kh3 {[%clk 0:00:06.9]} 83...
Kg5 {[%clk 0:00:45.1]} 84. Kh2 {[%clk 0:00:08.8]} 84... Kg4 {[%clk 0:00:46.7]}
1/2-1/2

[Event "*** Titled Tuesday Blitz"]
[Site "Chess.com"]
[Date "2018.10.02"]
[Round "6"]
[White "GMBenjaminFinegold"]
[Black "Gubajdullin"]
[Result "0-1"]
[WhiteElo "2302"]
[BlackElo "2391"]
[TimeControl "180+2"]
[EndTime "14:24:51 PDT"]
[Termination "Gubajdullin won by resignation"]

1. d4 {[%clk 0:03:01.9]} 1... g6 {[%clk 0:02:59.7]} 2. c4 {[%clk 0:03:01.8]}
2... Bg7 {[%clk 0:03:00.6]} 3. e4 {[%clk 0:03:03]} 3... d6 {[%clk 0:03:01.3]} 4.
Nc3 {[%clk 0:03:03.7]} 4... Nc6 {[%clk 0:02:59.5]} 5. Be3 {[%clk 0:03:00.7]}
5... e5 {[%clk 0:02:59.2]} 6. d5 {[%clk 0:03:01.1]} 6... Nd4 {[%clk 0:02:59.9]}
7. Nge2 {[%clk 0:03:02.1]} 7... Nxe2 {[%clk 0:02:55.9]} 8. Bxe2 {[%clk
0:03:02.9]} 8... Ne7 {[%clk 0:02:53.2]} 9. c5 {[%clk 0:03:02.3]} 9... O-O {[%clk
0:02:51.8]} 10. cxd6 {[%clk 0:03:02.7]} 10... cxd6 {[%clk 0:02:52.2]} 11. Rc1
{[%clk 0:03:01.3]} 11... f5 {[%clk 0:02:52.7]} 12. f3 {[%clk 0:03:00]} 12... f4
{[%clk 0:02:53.3]} 13. Bf2 {[%clk 0:03:00]} 13... Bd7 {[%clk 0:02:53.9]} 14. O-O
{[%clk 0:02:59.8]} 14... a6 {[%clk 0:02:48.7]} 15. Qb3 {[%clk 0:02:58.8]} 15...
b5 {[%clk 0:02:45.3]} 16. a4 {[%clk 0:02:26.5]} 16... Qa5 {[%clk 0:02:25.5]} 17.
axb5 {[%clk 0:02:19.6]} 17... axb5 {[%clk 0:02:26.4]} 18. Nb1 {[%clk 0:01:52.8]}
18... b4 {[%clk 0:02:24.2]} 19. Nd2 {[%clk 0:01:46.1]} 19... Ba4 {[%clk
0:02:24]} 20. Qd3 {[%clk 0:01:45.1]} 20... Qd8 {[%clk 0:02:16.5]} 21. b3 {[%clk
0:01:45.1]} 21... Bd7 {[%clk 0:02:12.8]} 22. Ra1 {[%clk 0:01:36.8]} 22... Ra3
{[%clk 0:02:10.1]} 23. Rxa3 {[%clk 0:01:27.9]} 23... bxa3 {[%clk 0:02:10]} 24.
Ra1 {[%clk 0:01:29.5]} 24... Qa8 {[%clk 0:02:01]} 25. b4 {[%clk 0:01:30.4]}
25... a2 {[%clk 0:01:46.3]} 26. Qb3 {[%clk 0:01:30.1]} 26... Rc8 {[%clk
0:01:46.3]} 27. Bf1 {[%clk 0:01:27.1]} 27... Qb8 {[%clk 0:01:30.3]} 28. b5
{[%clk 0:01:25.1]} 28... Nf5 {[%clk 0:01:26.8]} 29. exf5 {[%clk 0:01:18.2]}
29... e4 {[%clk 0:01:27.2]} 30. Nxe4 {[%clk 0:01:01.8]} 30... Bxa1 {[%clk
0:01:26.6]} 31. Qxa2 {[%clk 0:01:01.2]} 31... Be5 {[%clk 0:01:26.6]} 32. fxg6
{[%clk 0:01:00.4]} 32... Rc1 {[%clk 0:01:21.3]} 33. gxh7+ {[%clk 0:01:00.2]}
33... Kh8 {[%clk 0:01:21.7]} 34. Qd2 {[%clk 0:00:40.6]} 34... Ra1 {[%clk
0:01:14.5]} 35. g4 {[%clk 0:00:28.9]} 35... Qxb5 {[%clk 0:01:11.9]} 36. Be1
{[%clk 0:00:28.9]} 36... Qb6+ {[%clk 0:01:04.1]} 37. Kg2 {[%clk 0:00:26.5]}
37... Qb1 {[%clk 0:01:01.1]} 38. Bd3 {[%clk 0:00:11.1]} 38... Qxe1 {[%clk
0:00:58.8]} 39. Qxe1 {[%clk 0:00:12.7]} 39... Rxe1 {[%clk 0:00:59]} 40. Ng5
{[%clk 0:00:14.5]} 40... Be8 {[%clk 0:00:56.4]} 41. h4 {[%clk 0:00:15.6]} 41...
Bf6 {[%clk 0:00:51.6]} 42. Ne4 {[%clk 0:00:12.4]} 42... Bg6 {[%clk 0:00:43]} 43.
g5 {[%clk 0:00:13.5]} 43... Bxe4 {[%clk 0:00:41.8]} 44. Bxe4 {[%clk 0:00:14.3]}
44... Bd4 {[%clk 0:00:42.3]} 45. Kh3 {[%clk 0:00:15.3]} 45... Rg1 {[%clk
0:00:42.3]} 46. Kh2 {[%clk 0:00:16.1]} 46... Rg3 {[%clk 0:00:42.7]} 47. h5
{[%clk 0:00:15.3]} 47... Rxg5 {[%clk 0:00:42.5]} 48. Kh3 {[%clk 0:00:15.5]}
48... Rxh5+ {[%clk 0:00:43]} 49. Kg4 {[%clk 0:00:16.9]} 49... Rh2 {[%clk
0:00:30.1]} 50. Kxf4 {[%clk 0:00:17.9]} 50... Kg7 {[%clk 0:00:30.6]} 51. Kg4
{[%clk 0:00:19]} 51... Rh6 {[%clk 0:00:31]} 52. Kg5 {[%clk 0:00:19.4]} 52...
Be3+ {[%clk 0:00:31]} 53. Kg4 {[%clk 0:00:20.1]} 53... Rh1 {[%clk 0:00:30]} 54.
Kf5 {[%clk 0:00:21.1]} 54... Kxh7 {[%clk 0:00:24.7]} 55. Ke6+ {[%clk 0:00:22.2]}
55... Kg7 {[%clk 0:00:25.2]} 56. Kxd6 {[%clk 0:00:23.9]} 56... Bf4+ {[%clk
0:00:25.2]} 57. Ke6 {[%clk 0:00:24.5]} 57... Rd1 {[%clk 0:00:25.7]} 58. Kf5
{[%clk 0:00:25.6]} 58... Bh2 {[%clk 0:00:26]} 59. Ke6 {[%clk 0:00:26.8]} 59...
Kf8 {[%clk 0:00:26.1]} 60. Bf5 {[%clk 0:00:27.8]} 60... Ke8 {[%clk 0:00:26.5]}
61. Bg6+ {[%clk 0:00:29]} 61... Kd8 {[%clk 0:00:27.4]} 62. Be4 {[%clk
0:00:30.7]} 62... Kc7 {[%clk 0:00:27.7]} 63. Bf5 {[%clk 0:00:32.2]} 63... Ra1
{[%clk 0:00:27.6]} 64. Be4 {[%clk 0:00:33]} 64... Ra6+ {[%clk 0:00:28]} 65. Kf5
{[%clk 0:00:33]} 65... Kd6 {[%clk 0:00:28.7]} 66. Kf6 {[%clk 0:00:33.1]} 66...
Ra8 {[%clk 0:00:29.4]} 67. Kf7 {[%clk 0:00:34]} 67... Be5 {[%clk 0:00:28.5]} 68.
Bf5 {[%clk 0:00:31.5]} 68... Ra7+ {[%clk 0:00:29.1]} 69. Kg6 {[%clk 0:00:32]}
69... Rg7+ {[%clk 0:00:28.9]} 70. Kh6 {[%clk 0:00:33.2]} 70... Rg3 {[%clk
0:00:29.1]} 71. Be4 {[%clk 0:00:33.4]} 71... Ke7 {[%clk 0:00:29.6]} 72. Kh5
{[%clk 0:00:34.6]} 72... Kf6 {[%clk 0:00:30.2]} 73. d6 {[%clk 0:00:35.9]} 73...
Bxd6 {[%clk 0:00:30.5]} 74. Kh4 {[%clk 0:00:37]} 74... Rg1 {[%clk 0:00:31.1]}
75. Bd5 {[%clk 0:00:37]} 75... Ke5 {[%clk 0:00:31.8]} 76. Be4 {[%clk 0:00:37.9]}
76... Kf4 {[%clk 0:00:32.4]} 77. Kh5 {[%clk 0:00:37.5]} 77... Bf8 {[%clk
0:00:32.9]} 78. Ba8 {[%clk 0:00:36.3]} 78... Rg5+ {[%clk 0:00:32.5]} 79. Kh4
{[%clk 0:00:37.2]} 79... Be7 {[%clk 0:00:32.7]} 80. Kh3 {[%clk 0:00:37.7]} 80...
Rg3+ {[%clk 0:00:33.6]} 81. Kh2 {[%clk 0:00:38.7]} 81... Rg8 {[%clk 0:00:33.6]}
82. Be4 {[%clk 0:00:39.6]} 82... Ke3 {[%clk 0:00:33.7]} 83. Bd5 {[%clk
0:00:36.8]} 83... Rg7 {[%clk 0:00:31.5]} 84. Kh3 {[%clk 0:00:37.6]} 84... Kf2
{[%clk 0:00:31.8]} 85. Be4 {[%clk 0:00:38.4]} 85... Rg3+ {[%clk 0:00:32]} 86.
Kh2 {[%clk 0:00:39.4]} 86... Bd6 {[%clk 0:00:32.9]} 87. f4 {[%clk 0:00:40.7]}
87... Bxf4 {[%clk 0:00:32.6]} 0-1

[Event "*** Titled Tuesday Blitz"]
[Site "Chess.com"]
[Date "2018.10.02"]
[Round "7"]
[White "FMJoseHerrera"]
[Black "MatthewG-p4p"]
[Result "1-0"]
[WhiteElo "2525"]
[BlackElo "2646"]
[TimeControl "180+2"]
[EndTime "14:26:53 PDT"]
[Termination "FMJoseHerrera won by resignation"]

1. Nf3 {[%clk 0:03:01.9]} 1... c5 {[%clk 0:02:59.5]} 2. g3 {[%clk 0:03:03.3]}
2... g6 {[%clk 0:02:47]} 3. Bg2 {[%clk 0:03:05.2]} 3... Bg7 {[%clk 0:02:48.5]}
4. d3 {[%clk 0:03:06.3]} 4... Nc6 {[%clk 0:02:49.9]} 5. Nc3 {[%clk 0:03:07.9]}
5... d5 {[%clk 0:02:50.2]} 6. h4 {[%clk 0:03:09.3]} 6... h5 {[%clk 0:02:49.9]}
7. e4 {[%clk 0:03:08.7]} 7... Nf6 {[%clk 0:02:50.2]} 8. Bg5 {[%clk 0:03:06.4]}
8... d4 {[%clk 0:02:42.4]} 9. Ne2 {[%clk 0:03:06]} 9... Bg4 {[%clk 0:02:39.3]}
10. Qd2 {[%clk 0:03:05.6]} 10... Qb6 {[%clk 0:02:37.7]} 11. O-O {[%clk 0:03:05]}
11... Rd8 {[%clk 0:02:29.8]} 12. a4 {[%clk 0:03:04.6]} 12... Qc7 {[%clk
0:02:29.3]} 13. a5 {[%clk 0:03:04.5]} 13... Nxa5 {[%clk 0:02:21]} 14. Qxa5
{[%clk 0:03:01.4]} 1-0